bitfinex/quotes_BTCUSD_20240823
["timestamp","ask_amount","ask_price","bid_price","bid_amount"]
[1724431186491,1.57798298,61846.0,61845.0,0.002822]
[1724431187498,1.57898298,61846.0,61845.0,0.002822]
[1724431187700,1.57798298,61846.0,61845.0,0.002822]
[1724431187870,1.57898298,61846.0,61845.0,0.002822]
[1724431188871,1.57798298,61846.0,61845.0,0.002822]
[1724431189041,1.23159998,61846.0,61845.0,0.002822]
[1724431189686,1.55498298,61846.0,61845.0,0.002822]
[1724431189893,1.23159998,61846.0,61845.0,0.002822]
[1724431190241,0.76851698,61846.0,61845.0,0.002822]
[1724431190445,0.00604,61846.0,61845.0,0.002822]
[1724431191511,0.00604,61846.0,61845.0,0.001822]
[1724431191647,0.161731,61846.0,61845.0,0.000822]
[1724431191851,4e-05,61846.0,61845.0,0.002822]
[1724431192046,4e-05,61846.0,61845.0,0.000822]
[1724431192257,4e-05,61846.0,61845.0,0.001822]
[1724431192258,0.00604,61846.0,61845.0,0.001822]
[1724431192457,0.00604,61846.0,61845.0,0.003822]
[1724431192675,4e-05,61846.0,61845.0,0.002822]
[1724431193318,4e-05,61846.0,61845.0,0.166516]
[1724431193863,4e-05,61846.0,61845.0,0.004822]
[1724431194037,4e-05,61846.0,61845.0,0.489905]
[1724431194209,4e-05,61846.0,61845.0,0.308616]
[1724431194615,4e-05,61846.0,61845.0,1.070894]
[1724431194819,4e-05,61846.0,61845.0,1.379319]
[1724431195303,4e-05,61846.0,61845.0,1.702708]
[1724431195520,4e-05,61846.0,61845.0,1.70700642]
[1724431195670,4e-05,61846.0,61845.0,1.70500642]
[1724431195870,4e-05,61846.0,61845.0,1.71200642]
[1724431196193,4e-05,61846.0,61845.0,1.71900642]
[1724431197787,4e-05,61846.0,61845.0,1.71200642]
[1724431197987,4e-05,61846.0,61845.0,1.70500642]
[1724431198394,4e-05,61846.0,61845.0,1.71800642]
[1724431198775,4e-05,61846.0,61845.0,1.71700642]
[1724431198999,4e-05,61846.0,61845.0,0.77580342]
[1724431199212,4e-05,61846.0,61845.0,0.168922]
[1724431199590,4e-05,61846.0,61845.0,0.318616]
[1724431199728,4e-05,61846.0,61845.0,0.332616]
[1724431200170,4e-05,61846.0,61845.0,0.170922]
[1724431200381,4e-05,61846.0,61845.0,0.028822]
[1724431201109,4e-05,61846.0,61845.0,1.411483]
[1724431201355,4e-05,61846.0,61845.0,0.427316]
[1724431201554,4e-05,61846.0,61845.0,0.765705]
[1724431202708,4e-05,61846.0,61845.0,1.089094]
[1724431202954,4e-05,61846.0,61845.0,1.412483]
[1724431203301,4e-05,61846.0,61845.0,1.089094]
[1724431203831,4e-05,61846.0,61845.0,0.442316]
[1724431204172,4e-05,61846.0,61845.0,0.765705]
[1724431205243,4e-05,61846.0,61845.0,0.165822]
[1724431205782,4e-05,61846.0,61845.0,0.015822]
[1724431207520,4e-05,61846.0,61845.0,0.967894]
[1724431207743,4e-05,61846.0,61845.0,1.085394]
[1724431207953,4e-05,61846.0,61845.0,2.05189093]
[1724431208528,4e-05,61846.0,61845.0,2.09986569]
[1724431208728,4e-05,61846.0,61845.0,2.40644041]
[1724431208931,0.00904201,61862.0,61859.0,1.257212]
[1724431209574,0.00904201,61862.0,61859.0,1.580527]
[1724431210565,0.00904201,61862.0,61859.0,1.257212]
[1724431210766,0.00904201,61862.0,61859.0,0.302157]
[1724431211341,0.00904201,61862.0,61859.0,0.1405]
[1724431211729,0.00904201,61862.0,61859.0,0.308157]
[1724431211938,0.00904201,61862.0,61859.0,0.314157]
[1724431212338,0.00904201,61862.0,61859.0,0.1525]
[1724431212448,0.00904201,61862.0,61859.0,0.012]
[1724431214730,0.00904201,61862.0,61859.0,0.496972]
[1724431214931,0.00904201,61862.0,61859.0,0.635672]
[1724431215505,0.00904201,61862.0,61859.0,0.312357]
[1724431216396,0.00904201,61862.0,61859.0,1.075587]
[1724431216610,0.00904201,61862.0,61859.0,0.752272]
[1724431216855,0.00904201,61862.0,61859.0,1.075587]
[1724431217052,0.00904201,61862.0,61859.0,0.752272]
[1724431217250,0.00904201,61862.0,61859.0,0.428957]
[1724431217588,0.00904201,61862.0,61859.0,0.635672]
[1724431218138,0.00904201,61862.0,61859.0,0.312357]
[1724431218538,0.00904201,61862.0,61859.0,0.1507]
[1724431218669,0.00904201,61862.0,61859.0,0.312357]
[1724431219090,0.00032051,61860.0,61859.0,0.312357]
[1724431219606,0.48528551,61860.0,61859.0,0.012]
[1724431219806,0.60098551,61860.0,61859.0,0.012]
[1724431220915,1.22359849,61860.0,61859.0,0.012]
[1724431221115,1.54690849,61860.0,61859.0,0.012]
[1724431221318,0.00032051,61860.0,61859.0,0.012]
[1724431221532,0.00032051,61860.0,61859.0,0.006]
[1724431221756,0.00032051,61860.0,61859.0,0.314657]
[1724431221903,0.00032051,61860.0,61859.0,0.638972]
[1724431222098,0.00032051,61860.0,61859.0,0.309657]
[1724431222598,0.00132051,61860.0,61859.0,0.310657]
[1724431222800,0.00032051,61860.0,61859.0,0.632972]
[1724431223403,0.00032051,61860.0,61859.0,0.631972]
[1724431223768,0.00032051,61860.0,61859.0,0.633972]
[1724431224328,0.00032051,61860.0,61859.0,0.958287]
[1724431225398,0.00032051,61860.0,61859.0,0.634972]
[1724431226639,0.00032051,61860.0,61859.0,0.15]
[1724431229985,0.00032051,61860.0,61859.0,0.311657]
[1724431231176,0.00032051,61860.0,61859.0,0.15]
[1724431231597,0.00032051,61860.0,61859.0,0.958287]
[1724431231797,0.00032051,61860.0,61859.0,1.076287]
[1724431233125,0.00032051,61860.0,61859.0,0.634972]
[1724431234423,0.00032051,61860.0,61859.0,1.281602]
[1724431234662,0.00032051,61860.0,61859.0,0.958287]
[1724431235215,0.00032051,61860.0,61859.0,0.955287]
[1724431235612,0.00032051,61860.0,61859.0,0.957287]
[1724431236014,0.00032051,61860.0,61859.0,0.955287]
[1724431236192,0.00032051,61860.0,61859.0,0.961287]
[1724431237114,0.00032051,61860.0,61859.0,0.962287]
[1724431237516,0.00032051,61860.0,61859.0,1.55900498]
[1724431237717,0.00032051,61860.0,61859.0,1.55800498]
[1724431237897,0.00032051,61860.0,61859.0,2.339807]
[1724431238103,1e-08,61860.0,61859.0,2.345807]
[1724431238306,1e-08,61860.0,61859.0,2.381227]
[1724431238527,1e-08,61860.0,61859.0,2.367227]
[1724431238866,1e-08,61860.0,61859.0,2.385227]
[1724431239181,1e-08,61860.0,61859.0,2.395227]
[1724431239383,1e-08,61860.0,61859.0,2.384227]
[1724431239584,1e-08,61860.0,61859.0,2.406227]
[1724431239787,1e-08,61860.0,61859.0,2.420227]
[1724431239980,0.0005856,61864.0,61863.0,0.001]
[1724431240198,0.0005856,61864.0,61863.0,1.21466998]
[1724431240369,0.0005856,61864.0,61863.0,2.36610868]
[1724431240597,0.0005856,61864.0,61863.0,2.66927399]
[1724431240955,0.0005856,61864.0,61863.0,2.70169399]
[1724431241353,0.0005856,61864.0,61863.0,2.698462]
[1724431241566,4e-05,61870.0,61869.0,2.023408]
[1724431241760,4e-05,61870.0,61869.0,2.7658687]
[1724431242184,4e-05,61870.0,61869.0,2.66982601]
[1724431242472,0.11,61896.0,61869.0,2.66982601]
[1724431242473,0.0002,61899.0,61888.0,0.2237]
[1724431242593,0.0002,61899.0,61898.0,1.19648298]
[1724431242850,0.49287659,61904.0,61903.0,1.366201]
[1724431242851,0.00058505,61904.0,61903.0,1.366201]
[1724431243067,0.00058505,61904.0,61903.0,2.35901116]
[1724431243274,0.00904201,61910.0,61906.0,1.131745]
[1724431243485,0.00904201,61910.0,61906.0,1.83457751]
[1724431243686,0.00904201,61910.0,61906.0,2.01775751]
[1724431244112,0.00327337,61908.0,61907.0,0.807662]
[1724431244321,0.0211264,61914.0,61907.0,0.807662]
[1724431244322,0.0211264,61914.0,61913.0,0.487549]
[1724431244546,0.009053,61922.0,61921.0,0.322992]
[1724431244748,0.009053,61922.0,61921.0,1.85029998]
[1724431244957,0.009053,61922.0,61921.0,0.1474]
[1724431245162,0.009053,61922.0,61915.0,0.470421]
[1724431245163,0.001,61921.0,61915.0,0.470421]
[1724431245370,0.001,61921.0,61917.0,0.161505]
[1724431245589,0.001,61921.0,61918.0,0.161501]
[1724431245839,0.010053,61922.0,61917.0,0.2142562]
[1724431246035,0.0003,61920.0,61919.0,0.0527512]
[1724431246258,0.0003,61920.0,61912.0,0.323036]
[1724431246259,0.001,61912.0,61909.0,0.1409]
[1724431246921,0.001,61912.0,61905.0,0.1067]
[1724431246922,0.0003,61909.0,61905.0,0.161536]
[1724431247145,0.1117,61916.0,61906.0,0.16400298]
[1724431247146,0.0003,61907.0,61906.0,0.16400298]
[1724431247320,0.0003,61907.0,61906.0,0.32553798]
[1724431247523,0.0003,61909.0,61906.0,0.16400298]
[1724431247761,0.0003,61907.0,61906.0,0.16400298]
[1724431248149,0.0003,61907.0,61903.0,0.302442]
[1724431248342,0.0003,61907.0,61903.0,0.46644498]
[1724431248521,0.0003,61907.0,61906.0,0.161535]
[1724431248734,0.001,61911.0,61906.0,0.16400298]
[1724431248937,0.0013,61911.0,61910.0,0.161524]
[1724431249138,0.0013,61911.0,61906.0,0.16400298]
[1724431249139,0.0013,61911.0,61908.0,0.161528]
[1724431249450,0.0013,61911.0,61910.0,0.161524]
[1724431249451,0.001,61911.0,61910.0,0.161524]
[1724431249637,0.001,61911.0,61908.0,0.32306]
[1724431249638,0.0013,61911.0,61908.0,0.161527]
[1724431249817,0.0003,61908.0,61906.0,0.16400298]
[1724431250364,0.0003,61908.0,61903.0,0.1489]
[1724431250365,0.001,61908.0,61905.0,0.161536]
[1724431250573,0.0003,61907.0,61905.0,0.161536]
[1724431250776,0.001,61908.0,61906.0,0.161534]
[1724431250777,0.0013,61908.0,61906.0,0.161534]
[1724431251182,0.0013,61908.0,61903.0,0.1409]
[1724431251388,0.0013,61908.0,61906.0,0.161534]
[1724431251608,0.001,61907.0,61906.0,0.000822]
[1724431251816,0.162832,61907.0,61906.0,0.000822]
[1724431252020,0.162832,61907.0,61906.0,0.013822]
[1724431252235,0.925662,61907.0,61906.0,0.020822]
[1724431252458,1.41272998,61907.0,61906.0,0.020822]
[1724431252599,1.55522998,61907.0,61906.0,0.013822]
[1724431253023,1.55522998,61907.0,61906.0,0.021822]
[1724431253227,1.55522998,61907.0,61906.0,0.013822]
[1724431253678,1.55522998,61907.0,61906.0,0.014822]
[1724431253679,1.55722998,61907.0,61906.0,0.014822]
[1724431253843,1.55822998,61907.0,61906.0,0.014822]
[1724431254207,1.82220876,61907.0,61906.0,0.001822]
[1724431254407,1.65822998,61907.0,61906.0,0.002822]
[1724431254817,2.00529498,61907.0,61906.0,0.002822]
[1724431255061,2.00529498,61907.0,61906.0,0.001822]
[1724431255062,2.31371998,61907.0,61906.0,0.001822]
[1724431255309,2.31471998,61907.0,61906.0,0.002822]
[1724431255503,2.31471998,61907.0,61868.0,0.86547054]
[1724431255504,0.0003,61873.0,61872.0,0.161623]
[1724431255707,0.0003,61873.0,61871.0,0.161625]
[1724431255708,1e-08,61873.0,61871.0,0.161625]
[1724431255911,0.1118,61882.0,61871.0,0.161625]
[1724431255912,0.001,61875.0,61871.0,0.161625]
[1724431256087,0.001,61875.0,61868.0,0.323267]
[1724431256319,0.434997,61882.0,61870.0,0.161628]
[1724431256320,0.001,61874.0,61870.0,0.161628]
[1724431256522,0.001,61872.0,61868.0,0.161633]
[1724431256944,0.001,61872.0,61866.0,0.323279]
[1724431257148,0.001,61872.0,61871.0,0.002]
[1724431257698,0.002,61872.0,61871.0,0.002]
[1724431258123,0.001,61872.0,61871.0,0.002]
[1724431258417,0.002,61872.0,61871.0,0.009]
[1724431258622,0.002,61872.0,61871.0,0.170626]
[1724431258823,0.003,61872.0,61871.0,0.009]
[1724431259031,0.810117,61872.0,61871.0,0.009]
[1724431259469,0.810117,61872.0,61871.0,0.018]
[1724431259470,0.811117,61872.0,61871.0,0.018]
[1724431259684,0.948217,61872.0,61871.0,0.018]
[1724431260646,0.947217,61872.0,61871.0,0.009]
[1724431261060,0.951217,61872.0,61871.0,0.009]
[1724431261261,1.274464,61872.0,61871.0,0.009]
[1724431261463,1.43446698,61872.0,61871.0,0.009]
[1724431261683,1.11521998,61872.0,61871.0,0.009]
[1724431262078,1.11521998,61872.0,61853.0,0.576044]
[1724431262079,0.001,61856.0,61854.0,0.16167]
[1724431262277,0.001,61856.0,61853.0,0.2527]
[1724431262278,0.001,61856.0,61855.0,0.161668]
[1724431262734,0.001,61856.0,61855.0,0.1]
[1724431262971,0.02635418,61856.0,61855.0,0.1]
[1724431263297,0.02635418,61856.0,61853.0,0.2527]
[1724431263298,0.02735418,61856.0,61854.0,0.013]
[1724431263499,0.001,61855.0,61854.0,0.013]
[1724431263901,0.02635418,61856.0,61854.0,0.013]
[1724431264102,0.02735418,61856.0,61854.0,0.013]
[1724431264304,0.02635418,61856.0,61855.0,0.16400298]
[1724431264503,0.1126,61871.0,61855.0,0.16400298]
[1724431264504,0.001,61860.0,61855.0,0.16400298]
[1724431264915,0.001,61856.0,61855.0,0.17700298]
[1724431265119,0.001,61856.0,61855.0,0.72202798]
[1724431265555,0.002,61856.0,61855.0,0.73602798]
[1724431265755,0.02535427,61864.0,61856.0,0.1366]
[1724431265954,0.02535427,61864.0,61855.0,0.59942798]
[1724431265955,0.02535427,61864.0,61858.0,0.1366]
[1724431266161,0.02535427,61864.0,61860.0,0.2617]
[1724431266439,0.001,61862.0,61860.0,0.2617]
[1724431266682,0.001,61862.0,61860.0,0.1438]
[1724431267454,0.001,61863.0,61860.0,0.1438]
[1724431267784,0.02535427,61864.0,61861.0,0.16400298]
[1724431268948,0.02535427,61864.0,61860.0,0.1438]
[1724431269163,0.02535427,61864.0,61860.0,0.30780298]
[1724431269363,0.001,61862.0,61860.0,0.1438]
[1724431269568,0.001,61862.0,61860.0,0.1508]
[1724431269569,0.002,61862.0,61860.0,0.1508]
[1724431269769,0.002,61862.0,61860.0,0.1438]
[1724431269770,0.001,61862.0,61860.0,0.1438]
[1724431270099,0.002,61862.0,61860.0,0.1618]
[1724431270531,0.162652,61861.0,61855.0,0.10630876]
[1724431270737,0.162652,61861.0,61860.0,0.014]
[1724431270940,0.001,61861.0,61860.0,0.027]
[1724431271539,0.001,61861.0,61860.0,0.014]
[1724431271741,0.002,61861.0,61860.0,0.014]
[1724431272559,0.163652,61861.0,61860.0,0.014]
[1724431272730,0.001,61859.0,61855.0,0.32501174]
[1724431272945,0.001,61859.0,61855.0,0.31101174]
[1724431273460,0.001,61859.0,61855.0,0.14700876]
[1724431273661,0.646602,61862.0,61855.0,0.1407]
[1724431273662,0.162665,61856.0,61855.0,0.1407]
[1724431274047,0.162665,61856.0,61855.0,0.1537]
[1724431274252,0.02535482,61856.0,61855.0,0.1537]
[1724431274599,0.02535482,61856.0,61855.0,0.1397]
[1724431274816,0.001,61859.0,61855.0,0.30370298]
[1724431275012,0.001,61856.0,61855.0,0.31770298]
[1724431275275,0.001,61856.0,61855.0,0.6293611]
[1724431275484,0.001,61856.0,61855.0,0.85505098]
[1724431276343,0.001,61856.0,61855.0,0.41852598]
[1724431276806,0.002,61856.0,61855.0,0.43252598]
[1724431277012,0.002,61856.0,61855.0,0.268523]
[1724431277013,0.163665,61856.0,61855.0,0.268523]
[1724431277142,0.163665,61856.0,61855.0,0.028823]
[1724431277143,0.002,61856.0,61855.0,0.028823]
[1724431278262,0.003,61856.0,61855.0,0.028823]
[1724431279511,0.002,61856.0,61855.0,0.028823]
[1724431281893,0.003,61856.0,61855.0,0.028823]
[1724431282139,0.164665,61856.0,61855.0,0.028823]
[1724431282375,0.003,61856.0,61855.0,0.028823]
[1724431282593,0.164665,61856.0,61855.0,0.028823]
[1724431283238,0.163665,61856.0,61855.0,0.014823]
[1724431283438,0.163665,61856.0,61855.0,0.007823]
[1724431283667,0.164665,61856.0,61855.0,0.014823]
[1724431284045,0.163665,61856.0,61855.0,0.007823]
[1724431284542,0.164665,61856.0,61855.0,0.013823]
[1724431284745,0.487996,61856.0,61855.0,0.013823]
[1724431284957,0.486996,61856.0,61855.0,0.006823]
[1724431285363,0.486996,61856.0,61855.0,0.013823]
[1724431285364,0.487996,61856.0,61855.0,0.013823]
[1724431285564,0.164665,61856.0,61855.0,0.013823]
[1724431286492,0.003,61856.0,61855.0,0.013823]
[1724431286694,0.164665,61856.0,61855.0,0.013823]
[1724431286951,0.003,61856.0,61855.0,0.013823]
[1724431287169,0.164665,61856.0,61855.0,0.013823]
[1724431287748,0.003,61856.0,61855.0,0.013823]
[1724431288732,0.003,61856.0,61855.0,0.148023]
[1724431289157,0.0039053,61856.0,61855.0,0.148023]
[1724431290176,0.0019053,61856.0,61855.0,0.135023]
[1724431290554,0.0039053,61856.0,61855.0,0.148023]
[1724431290755,0.0039053,61856.0,61855.0,0.013823]
[1724431290981,0.0029053,61856.0,61855.0,0.007823]
[1724431291355,0.0029053,61856.0,61855.0,0.150023]
[1724431291850,0.02535465,61862.0,61858.0,0.161658]
[1724431292071,0.02535465,61862.0,61855.0,0.473359]
[1724431292254,0.02535465,61862.0,61855.0,0.311688]
[1724431292472,0.02535465,61862.0,61856.0,0.161665]
[1724431292592,0.02535465,61862.0,61855.0,0.151023]
[1724431292797,0.02535465,61862.0,61855.0,0.159023]
[1724431293133,0.02535465,61862.0,61855.0,0.304691]
[1724431293386,0.02535465,61862.0,61855.0,0.306691]
[1724431293595,0.02535465,61862.0,61855.0,0.145023]
[1724431293774,0.02535465,61862.0,61857.0,0.161662]
[1724431294196,0.02535465,61862.0,61855.0,0.30669]
[1724431294335,0.02535465,61862.0,61857.0,0.1609756]
[1724431294535,0.02535465,61862.0,61855.0,0.145023]
[1724431294734,0.02535465,61862.0,61856.0,0.323327]
[1724431295074,0.02535465,61862.0,61856.0,0.161665]
[1724431295248,0.02535465,61862.0,61857.0,0.161662]
[1724431295455,0.02535465,61862.0,61855.0,0.144023]
[1724431295677,0.02535465,61862.0,61857.0,0.002]
[1724431296094,0.02535465,61862.0,61857.0,0.004]
[1724431296095,0.1462,61860.0,61857.0,0.004]
[1724431296295,0.1462,61860.0,61855.0,0.000823]
[1724431296694,0.1462,61860.0,61855.0,0.004823]
[1724431296899,0.1462,61860.0,61855.0,0.002823]
[1724431297150,0.1462,61860.0,61855.0,0.000823]
[1724431297293,0.1462,61860.0,61857.0,0.004]
[1724431298551,0.161656,61860.0,61857.0,0.004]
[1724431298763,0.161659,61859.0,61855.0,0.000823]
[1724431298991,0.484996,61856.0,61855.0,0.000823]
[1724431299193,0.32331,61860.0,61855.0,0.000823]
[1724431299404,0.48731298,61860.0,61855.0,0.004823]
[1724431299612,0.48731298,61860.0,61855.0,0.000823]
[1724431299810,0.161655,61860.0,61855.0,0.000823]
[1724431300076,0.1138,61861.0,61855.0,0.012823]
[1724431300077,0.161661,61858.0,61855.0,0.012823]
[1724431300430,0.323316,61859.0,61855.0,0.011823]
[1724431300636,0.1138,61861.0,61855.0,0.022823]
[1724431300637,0.161663,61857.0,61855.0,0.022823]
[1724431301044,0.808327,61856.0,61855.0,0.022823]
[1724431301244,1.057427,61856.0,61855.0,0.022823]
[1724431301451,1.54476098,61856.0,61855.0,0.022823]
[1724431301654,1.54576098,61856.0,61855.0,0.011823]
[1724431302075,1.96809198,61856.0,61855.0,0.012823]
[1724431302308,2.13507076,61856.0,61855.0,0.012823]
[1724431302506,2.1613768,61856.0,61855.0,0.013823]
[1724431302843,2.1843768,61856.0,61855.0,0.000823]
[1724431302984,2.1853768,61856.0,61855.0,0.000823]
[1724431303189,2.5097078,61856.0,61855.0,0.001823]
[1724431303397,2.5097078,61856.0,61846.0,0.0008881]
[1724431303398,1.132823,61847.0,61846.0,0.0008881]
[1724431303593,2.12898365,61847.0,61846.0,0.0008881]
[1724431303943,2.47636165,61847.0,61846.0,0.0008881]
[1724431304149,2.03402766,61847.0,61846.0,0.0008881]
[1724431304342,1.70260266,61847.0,61846.0,0.0008881]
[1724431304551,1.35391429,61847.0,61846.0,0.0008881]
[1724431305366,1.67729229,61847.0,61846.0,0.0008881]
[1724431305567,1.68129229,61847.0,61846.0,0.0018881]
[1724431305722,1.67729229,61847.0,61846.0,0.0008881]
[1724431306131,1.84127107,61847.0,61846.0,0.0008881]
[1724431306327,1.68129229,61847.0,61846.0,0.0018881]
[1724431306737,1.68529229,61847.0,61846.0,0.0028881]
[1724431307393,1.70829229,61847.0,61846.0,0.0028881]
[1724431308013,1.71029229,61847.0,61846.0,0.0028881]
[1724431308222,1.68529229,61847.0,61846.0,0.0028881]
[1724431309065,2.18069607,61847.0,61846.0,0.0028881]
[1724431309431,1.87527107,61847.0,61846.0,0.0028881]
[1724431310017,1.87727107,61847.0,61846.0,0.0028881]
[1724431310271,1.87727107,61847.0,61842.0,0.000822]
[1724431310273,0.005,61843.0,61842.0,0.000822]
[1724431310446,0.005,61843.0,61831.0,0.0002]
[1724431310447,1.379767,61832.0,61831.0,0.0002]
[1724431310649,2.45397265,61832.0,61831.0,0.0002]
[1724431310855,2.80242965,61832.0,61831.0,0.0002]
[1724431311260,1.065102,61812.0,61811.0,0.0002]
[1724431311436,0.90554398,61812.0,61811.0,0.0002]
[1724431311588,1.22910498,61812.0,61811.0,0.0002]
[1724431311790,1.35201548,61812.0,61811.0,0.0002]
[1724431311989,1.67557648,61812.0,61811.0,0.0002]
[1724431312218,1.67757648,61812.0,61811.0,0.0002]
[1724431312419,1.80295451,61812.0,61811.0,0.0002]
[1724431312618,1.82695451,61812.0,61811.0,0.0002]
[1724431312819,2.15251551,61812.0,61811.0,0.0002]
[1724431313196,2.15251551,61812.0,61800.0,0.000823]
[1724431313197,1.136666,61801.0,61800.0,0.000823]
[1724431313397,1.136666,61801.0,61797.0,0.00102875]
[1724431313398,0.489452,61798.0,61797.0,0.00102875]
[1724431313624,1.97718008,61798.0,61797.0,0.00102875]
[1724431313877,1.9782355,61798.0,61797.0,0.00102875]
[1724431314099,2.0052355,61798.0,61797.0,0.00102875]
[1724431314278,2.0052355,61798.0,61784.0,0.00823]
[1724431314279,0.472258,61792.0,61784.0,0.00823]
[1724431314411,0.89830198,61792.0,61784.0,0.00823]
[1724431314608,0.67463598,61792.0,61784.0,0.00823]
[1724431314840,0.37810298,61792.0,61784.0,0.00823]
[1724431315104,0.1338,61796.0,61784.0,0.00823]
[1724431315105,0.1338,61796.0,61787.0,0.161845]
[1724431315253,0.16400298,61795.0,61784.0,0.00823]
[1724431315643,0.02538552,61798.0,61787.0,0.32369]
[1724431315839,0.02538552,61798.0,61791.0,0.0012]
[1724431315840,0.013,61792.0,61791.0,0.0012]
[1724431316055,0.02,61792.0,61791.0,0.635306]
[1724431316280,0.02,61792.0,61791.0,1.063477]
[1724431316281,0.007,61792.0,61791.0,1.063477]
[1724431316479,0.02538552,61798.0,61797.0,0.8091]
[1724431316687,0.02538552,61798.0,61797.0,0.9567]
[1724431316895,0.02538552,61798.0,61797.0,0.63306]
[1724431316896,0.03038552,61798.0,61797.0,0.63306]
[1724431317286,0.02538552,61798.0,61797.0,0.63306]
[1724431317489,0.02538552,61798.0,61797.0,0.30942]
[1724431317665,0.02538552,61798.0,61797.0,0.1476]
[1724431317817,0.02538552,61798.0,61797.0,0.30942]
[1724431318832,0.02538552,61798.0,61797.0,0.63306]
[1724431319235,0.02538552,61798.0,61797.0,0.30942]
[1724431319435,0.02638552,61798.0,61797.0,0.64006]
[1724431319777,0.00100001,61798.0,61797.0,1.29634]
[1724431320008,0.00100001,61798.0,61797.0,1.57084298]
[1724431321225,0.001,61798.0,61797.0,1.56384298]
[1724431321477,0.002,61798.0,61797.0,1.57484298]
[1724431321879,0.002,61798.0,61797.0,1.25120298]
[1724431322083,0.002,61798.0,61797.0,1.25744072]
[1724431322663,0.002,61798.0,61797.0,0.76979774]
[1724431323007,0.002,61798.0,61797.0,0.02]
[1724431323008,0.163817,61798.0,61797.0,0.02]
[1724431323139,0.163817,61798.0,61797.0,0.018]
[1724431323140,0.811087,61798.0,61797.0,0.018]
[1724431323344,1.49711376,61798.0,61797.0,0.018]
[1724431323585,1.59711376,61798.0,61797.0,0.018]
[1724431323994,1.59611376,61798.0,61797.0,0.011]
[1724431324196,1.59611376,61798.0,61791.0,0.0002]
[1724431324197,1.132831,61792.0,61791.0,0.0002]
[1724431324406,1.54183398,61792.0,61791.0,0.0002]
[1724431324607,1.64183398,61792.0,61791.0,0.0002]
[1724431325324,1.74978501,61792.0,61791.0,0.0002]
[1724431325750,1.64383398,61792.0,61791.0,0.0002]
[1724431325953,1.31816798,61792.0,61791.0,0.0002]
[1724431326201,0.44783598,61792.0,61791.0,0.0012]
[1724431327177,0.510499,61792.0,61791.0,0.0022]
[1724431327441,1.08308278,61792.0,61791.0,0.0012]
[1724431327760,0.019,61792.0,61791.0,0.0022]
[1724431328165,0.006,61792.0,61791.0,0.0012]
[1724431328564,0.006,61792.0,61791.0,0.163035]
[1724431328960,0.02629079,61798.0,61791.0,0.0002]
[1724431329138,0.18810979,61798.0,61791.0,0.0022]
[1724431329355,0.02629079,61798.0,61791.0,0.0022]
[1724431329513,0.18810979,61798.0,61792.0,0.1131]
[1724431329690,0.18810979,61798.0,61791.0,0.0022]
[1724431329691,0.02629079,61798.0,61791.0,0.0022]
[1724431330115,0.003,61792.0,61791.0,0.164033]
[1724431330485,0.02629079,61798.0,61793.0,0.16183]
[1724431330682,0.02629079,61798.0,61791.0,0.162034]
[1724431330683,0.03429079,61798.0,61791.0,0.162034]
[1724431331196,0.03129079,61798.0,61791.0,0.0002]
[1724431331367,0.03129079,61798.0,61791.0,0.0042]
[1724431331368,0.161823,61796.0,61791.0,0.0042]
[1724431331522,0.02929079,61798.0,61791.0,0.0042]
[1724431331732,0.161823,61796.0,61791.0,0.0002]
[1724431331949,0.02929079,61798.0,61791.0,0.0002]
[1724431331950,0.161832,61793.0,61791.0,0.0002]
[1724431332149,0.03229079,61798.0,61791.0,0.0002]
[1724431332150,0.485499,61792.0,61791.0,0.0002]
[1724431332370,0.809165,61792.0,61791.0,0.0002]
[1724431332715,1.132831,61792.0,61791.0,0.0002]
[1724431332918,1.40683398,61792.0,61791.0,0.0002]
[1724431333995,1.54723398,61792.0,61791.0,0.0032]
[1724431334194,2.12802338,61792.0,61791.0,0.0032]
[1724431334394,2.13002338,61792.0,61791.0,0.0032]
[1724431334589,2.13002338,61792.0,61791.0,0.0002]
[1724431334807,1.97089998,61792.0,61791.0,0.0082]
[1724431334943,1.97189998,61792.0,61791.0,0.0082]
[1724431335147,1.97289998,61792.0,61791.0,0.0042]
[1724431335406,2.3850856,61792.0,61791.0,0.0002]
[1724431335602,2.3850856,61792.0,61788.0,0.000821]
[1724431335603,1.461569,61789.0,61788.0,0.000821]
[1724431335825,1.86417198,61789.0,61788.0,0.000821]
[1724431336041,1.98317198,61789.0,61788.0,0.000821]
[1724431336240,1.98717198,61789.0,61788.0,0.000821]
[1724431336358,1.6848806,61789.0,61788.0,0.000821]
[1724431336935,1.3381986,61789.0,61788.0,0.000821]
[1724431337135,1.3521986,61789.0,61788.0,0.001821]
[1724431337521,1.3521986,61789.0,61788.0,0.000821]
[1724431337522,1.2062986,61789.0,61788.0,0.000821]
[1724431337926,0.7869166,61789.0,61788.0,0.001821]
[1724431338127,1.0985986,61789.0,61788.0,0.000821]
[1724431338718,1.1165986,61789.0,61788.0,0.002821]
[1724431339258,1.4402806,61789.0,61788.0,0.002821]
[1724431339466,1.4412806,61789.0,61788.0,0.002821]
[1724431339648,1.84219866,61789.0,61788.0,0.002821]
[1724431339848,1.86719866,61789.0,61788.0,0.002821]
[1724431340256,1.86819866,61789.0,61788.0,0.002821]
[1724431340660,2.19188066,61789.0,61788.0,0.002821]
[1724431345411,2.21721851,61789.0,61788.0,0.002821]
[1724431345815,1.73621845,61789.0,61788.0,0.002821]
[1724431346395,2.05990045,61789.0,61788.0,0.002821]
[1724431349726,1.0165986,61789.0,61788.0,0.002821]
[1724431349933,0.3692346,61789.0,61788.0,0.002821]
[1724431350134,0.6929166,61789.0,61788.0,0.002821]
[1724431350284,0.3692346,61789.0,61788.0,0.002821]
[1724431350489,0.3692346,61789.0,61788.0,0.001821]
[1724431350490,0.75320776,61789.0,61788.0,0.001821]
[1724431350692,1.07688976,61789.0,61788.0,0.001821]